fUST/lending_fUST_20240604
["ID","MTS","AMOUNT","RATE_DAILY","PERIOD"]
[328529120,1717491073497,-2081.33,0.00025205,6]
[328529121,1717491073507,-2897.19,0.00025205,6]
[328529122,1717491073516,-716.73,0.00025205,6]
[328529123,1717491073526,-283.35,0.00025205,6]
[328529124,1717491073535,-551.83,0.00025205,6]
[328529125,1717491073544,-1067.09,0.00025205,6]
[328529126,1717491073554,-500.0,0.00025205,6]
[328529127,1717491073563,-784.48,0.00025205,6]
[328529128,1717491073573,-2398.11,0.00025205,6]
[328529129,1717491073583,-165.44,0.00025205,6]
[328529130,1717491073592,-500.0,0.00025205,6]
[328529131,1717491073602,-6351.48,0.00025205,6]
[328529132,1717491073611,-500.0,0.00025205,6]
[328529133,1717491073620,-500.0,0.00025205,6]
[328529134,1717491073630,-500.0,0.00025205,6]
[328529135,1717491073639,-2864.71,0.00025205,6]
[328529136,1717491073648,-548.76,0.00025205,6]
[328529137,1717491073657,-500.0,0.00025205,6]
[328529138,1717491073667,-500.0,0.00025205,6]
[328529139,1717491073676,-500.0,0.00025205,6]
[328529140,1717491073686,-500.0,0.00025205,6]
[328529141,1717491073695,-1053.55,0.00025205,6]
[328529142,1717491073705,-508.28,0.00025205,6]
[328529143,1717491073715,-8636.82,0.00025205,6]
[328529144,1717491073724,-8387.6,0.00025205,6]
[328529145,1717491073736,-9610.03,0.00025205,6]
[328529146,1717491073745,-587.19,0.00025205,6]
[328529147,1717491073754,-2962.26,0.00025205,6]
[328529148,1717491073764,-500.0,0.00025205,6]
[328529149,1717491073775,-500.0,0.00025205,6]
[328529150,1717491073784,-332.4260908,0.00025205,6]
[328529151,1717491073794,-500.0,0.00025205,6]
[328529152,1717491073803,-878.67,0.00025205,6]
[328529153,1717491073812,-500.0,0.00025205,6]
[328529154,1717491073822,-500.0,0.00025205,6]
[328529155,1717491073832,-1141.41,0.00025205,6]
[328529156,1717491073841,-613.13,0.00025205,6]
[328529157,1717491073851,-576.98,0.00025205,6]
[328529158,1717491073861,-500.0,0.00025205,6]
[328529159,1717491073871,-1776.49,0.00025205,6]
[328529160,1717491073880,-604.96,0.00025205,2]
[328529161,1717491073889,-162.82015181,0.00025207,2]
[328529162,1717491073899,-159.16643289,0.00025208,2]
[328529163,1717491073908,-169.16320595,0.00025208,2]
[328529164,1717491073917,-625.36455707,0.00025208,2]
[328529165,1717491073927,-166.23882808,0.00025208,2]
[328529166,1717491073936,-757.84913953,0.00025208,2]
[328529167,1717491073945,-1158.54228289,0.00025209,2]
[328529168,1717491073955,-150.0,0.00025278,2]
[328529169,1717491073964,-271.63362366,0.00025478,2]
[328529170,1717491073973,-500.0,0.00025479,6]
[328529171,1717491073982,-434.69738333,0.00025479,6]
[328529172,1717491073993,-500.0,0.00025479,6]
[328529173,1717491074002,-1547.46,0.00025479,6]
[328529174,1717491074014,-500.0,0.00025479,6]
[328529175,1717491074024,-517.42,0.00025479,6]
[328529176,1717491074034,-363.8231379,0.00025479,6]
[328529177,1717491074044,-502.04,0.00025479,6]
[328529178,1717491074055,-771.55,0.00025479,6]
[328529179,1717491074066,-1211.67,0.00025479,6]
[328529180,1717491074075,-500.0,0.00025479,6]
[328529181,1717491074085,-1063.22,0.00025479,6]
[328529182,1717491074094,-677.21,0.00025479,6]
[328529183,1717491074103,-500.0,0.00025479,6]
[328529184,1717491074112,-500.0,0.00025479,6]
[328529185,1717491074121,-505.94,0.00025479,6]
[328529186,1717491074130,-625.76,0.00025479,6]
[328529187,1717491074139,-500.0,0.00025479,6]
[328529188,1717491074148,-500.0,0.00025479,6]
[328529189,1717491074156,-500.0,0.00025479,6]
[328529190,1717491074166,-528.05,0.00025479,6]
[328529191,1717491074175,-500.0,0.00025479,6]
[328529192,1717491074184,-880.63,0.00025479,6]
[328529193,1717491074194,-1442.26,0.00025479,6]
[328529194,1717491074203,-1154.39,0.00025479,6]
[328529195,1717491074212,-523.02,0.00025479,6]
[328529196,1717491074221,-1023.21,0.00025479,6]
[328529197,1717491074231,-500.0,0.00025479,6]
[328529198,1717491074241,-254.5,0.00025479,6]
[328529199,1717491074251,-500.0,0.00025479,6]
[328529200,1717491074260,-1700.55,0.00025479,6]
[328529201,1717491074269,-500.0,0.00025479,6]
[328529202,1717491074279,-500.0,0.00025479,6]
[328529203,1717491074289,-500.0,0.00025479,6]
[328529204,1717491074298,-529.61,0.00025479,6]
[328529205,1717491074308,-500.0,0.00025479,6]
[328529206,1717491074317,-3200.1,0.00025479,6]
[328529207,1717491074326,-1036.62,0.00025479,6]
[328529208,1717491074336,-558.11,0.00025479,6]
[328529209,1717491074348,-2081.33,0.00025479,6]
[328529210,1717491074358,-2897.19,0.00025479,6]
[328529211,1717491074367,-716.73,0.00025479,6]
[328529212,1717491074376,-551.83,0.00025479,6]
[328529213,1717491074386,-1067.09,0.00025479,6]
[328529214,1717491074396,-500.0,0.00025479,6]
[328529215,1717491074405,-784.48,0.00025479,6]
[328529216,1717491074416,-2398.11,0.00025479,6]
[328529217,1717491074426,-500.0,0.00025479,6]
[328529218,1717491074435,-6351.48,0.00025479,6]
[328529219,1717491074444,-500.0,0.00025479,6]
[328529220,1717491074454,-500.0,0.00025479,6]
[328529221,1717491074463,-638.58,0.00025479,6]
[328529222,1717491074472,-2864.71,0.00025479,6]
[328529223,1717491074481,-548.76,0.00025479,6]
[328529224,1717491074492,-500.0,0.00025479,6]
[328529225,1717491074501,-571.84,0.00025479,6]
[328529226,1717491074511,-500.0,0.00025479,6]
[328529227,1717491074520,-500.0,0.00025479,6]
[328529228,1717491074530,-1053.55,0.00025479,6]
[328529229,1717491074539,-508.28,0.00025479,6]
[328529230,1717491074548,-8636.82,0.00025479,6]
[328529231,1717491074558,-8387.6,0.00025479,6]
[328529232,1717491074567,-9610.03,0.00025479,6]
[328529233,1717491074576,-587.19,0.00025479,6]
[328529234,1717491074586,-2962.26,0.00025479,6]
[328529235,1717491074595,-500.0,0.00025479,6]
[328529236,1717491074604,-500.0,0.00025479,6]
[328529237,1717491074613,-500.0,0.00025479,6]
[328529238,1717491074623,-878.67,0.00025479,6]
[328529239,1717491074633,-500.0,0.00025479,6]
[328529240,1717491074642,-500.0,0.00025479,6]
[328529241,1717491074651,-1141.41,0.00025479,6]
[328529242,1717491074660,-613.13,0.00025479,6]
[328529243,1717491074670,-576.98,0.00025479,6]
[328529244,1717491074679,-500.0,0.00025479,6]
[328529245,1717491074688,-1776.49,0.00025479,6]
[328529246,1717491074697,-604.96,0.00025479,2]
[328529247,1717491074706,-799.70349221,0.0002567,2]
[328529248,1717491074715,-250.2,0.00025673,7]
[328529249,1717491074724,-190.02965484,0.00025751,2]
[328529250,1717491074735,-1265.85343059,0.00025751,2]
[328529251,1717491074745,-404.32402884,0.00025751,2]
[328529252,1717491074754,-285.64268325,0.00025752,2]
[328529253,1717491074763,-500.0,0.00025753,6]
[328529254,1717491074772,-500.0,0.00025753,6]
[328529255,1717491074782,-1547.46,0.00025753,6]
[328529256,1717491074791,-500.0,0.00025753,6]
[328529257,1717491074800,-517.42,0.00025753,6]
[328529258,1717491074809,-502.04,0.00025753,6]
[328529259,1717491074818,-771.55,0.00025753,6]
[328529260,1717491074827,-500.0,0.00025753,6]
[328529261,1717491074836,-1211.67,0.00025753,6]
[328529262,1717491074846,-1063.22,0.00025753,6]
[328529263,1717491074857,-677.21,0.00025753,6]
[328529264,1717491074868,-500.0,0.00025753,6]
[328529265,1717491074957,-472.7,0.00025753,6]
[328529266,1717491074968,-505.94,0.00025753,6]
[328529267,1717491074977,-625.76,0.00025753,6]
[328529268,1717491074986,-500.0,0.00025753,6]
[328529269,1717491074995,-500.0,0.00025753,6]
[328529270,1717491075004,-552.53,0.00025753,6]
[328529271,1717491075014,-528.05,0.00025753,6]
[328529272,1717491075023,-411.73342454,0.00025753,6]
[328529273,1717491075032,-880.63,0.00025753,6]
[328529274,1717491075041,-1442.26,0.00025753,6]
[328529275,1717491075051,-1154.39,0.00025753,6]
[328529276,1717491075061,-523.02,0.00025753,6]
[328529277,1717491075071,-1023.21,0.00025753,6]
[328529278,1717491075081,-500.0,0.00025753,6]
[328529279,1717491075091,-500.0,0.00025753,6]
[328529280,1717491075100,-1700.55,0.00025753,6]
[328529281,1717491075110,-500.0,0.00025753,6]
[328529282,1717491075119,-500.0,0.00025753,6]
[328529283,1717491075128,-500.0,0.00025753,6]
[328529284,1717491075138,-529.61,0.00025753,6]
[328529285,1717491075148,-500.0,0.00025753,6]
[328529286,1717491075158,-3200.1,0.00025753,6]
[328529287,1717491075167,-1036.62,0.00025753,6]
[328529288,1717491075177,-558.11,0.00025753,6]
[328529289,1717491075186,-2081.33,0.00025753,6]
[328529290,1717491075195,-2897.19,0.00025753,6]
[328529291,1717491075205,-716.73,0.00025753,6]
[328529292,1717491075214,-551.83,0.00025753,6]
[328529293,1717491075223,-1067.09,0.00025753,6]
[328529294,1717491075232,-500.0,0.00025753,6]
[328529295,1717491075243,-784.48,0.00025753,6]
[328529296,1717491075252,-2398.11,0.00025753,6]
[328529297,1717491075262,-574.88,0.00025753,6]
[328529298,1717491075271,-6351.48,0.00025753,6]
[328529299,1717491075280,-500.0,0.00025753,6]
[328529300,1717491075289,-500.0,0.00025753,6]
[328529301,1717491075298,-2864.71,0.00025753,6]
[328529302,1717491075307,-548.76,0.00025753,6]
[328529303,1717491075316,-224.26,0.00025753,6]
[328529304,1717491075326,-500.0,0.00025753,6]
[328529305,1717491075335,-500.0,0.00025753,6]
[328529306,1717491075346,-1053.55,0.00025753,6]
[328529307,1717491075358,-508.28,0.00025753,6]
[328529308,1717491075368,-8636.82,0.00025753,6]
[328529309,1717491075377,-8387.6,0.00025753,6]
[328529310,1717491075387,-9610.03,0.00025753,6]
[328529311,1717491075396,-587.19,0.00025753,6]
[328529312,1717491075406,-2962.26,0.00025753,6]
[328529313,1717491075415,-500.0,0.00025753,6]
[328529314,1717491075426,-500.0,0.00025753,6]
[328529315,1717491075435,-500.0,0.00025753,6]
[328529316,1717491075445,-878.67,0.00025753,6]
[328529317,1717491075455,-500.0,0.00025753,6]
[328529318,1717491075464,-500.0,0.00025753,6]
[328529319,1717491075473,-1141.41,0.00025753,6]
[328529320,1717491075483,-613.13,0.00025753,6]
[328529321,1717491075494,-576.98,0.00025753,6]
[328529322,1717491075503,-500.0,0.00025753,6]
[328529323,1717491075512,-1776.49,0.00025753,6]
[328529324,1717491075521,-153.0,0.00025753,2]
[328529325,1717491075531,-266.09131684,0.00025817,2]
[328529326,1717491075540,-9259.23918296,0.00025818,7]
[328529327,1717491075549,-155.04431182,0.0002595,2]
[328529328,1717491075558,-189.86240271,0.00025988,2]
[328529329,1717491075567,-194.64215028,0.00025988,2]
[328529330,1717491075576,-155.56601865,0.00025988,2]
[328529331,1717491075586,-693.15714744,0.00025989,2]
[328529332,1717491075595,-155.23795272,0.00025989,2]
[328529333,1717491075604,-15803.11676389,0.0002599,2]
[328529334,1717491075613,-1350.09378414,0.0002599,2]
[328529335,1717491075622,-155.2959198,0.00025999,2]
[328529336,1717491075631,-489.0,0.00026,2]
[328529337,1717491075640,-3189.0,0.00026,3]
[328529338,1717491075649,-1034.08,0.00026,2]
[328529339,1717491075658,-1000.0,0.00026,26]
[328529340,1717491075667,-7365.6072277,0.00026,2]
[328529341,1717491075676,-166.666666,0.00026,2]
[328529342,1717491075686,-227.97513138,0.00026014,2]
[328529343,1717491075695,-282.57731058,0.00026014,2]
[328529344,1717491075705,-202.85351682,0.00026014,2]
[328529345,1717491075714,-155.64775207,0.00026014,2]
[328529346,1717491075723,-155.83164308,0.00026014,2]
[328529347,1717491075732,-173.14098064,0.00026014,2]
[328529348,1717491075744,-158.46035268,0.00026015,2]
[328529349,1717491075753,-236.2849513,0.00026015,2]
[328529350,1717491075762,-457.61806044,0.00026015,2]
[328529351,1717491075771,-3900.97146099,0.00026015,2]
[328529352,1717491075781,-215.88988925,0.00026015,2]
[328529353,1717491075790,-1044.46793886,0.00026015,2]
[328529354,1717491075799,-155.82437937,0.00026015,2]
[328529355,1717491075808,-155.95651675,0.00026015,2]
[328529356,1717491075817,-173.7301941,0.00026015,2]
[328529357,1717491075826,-157.08178345,0.00026015,2]
[328529358,1717491075835,-168.48310769,0.00026015,2]
[328529359,1717491075844,-399.57775293,0.00026015,2]
[328529360,1717491075853,-184.91245923,0.00026015,2]
[328529361,1717491075862,-196.8231043,0.00026015,2]
[328529362,1717491075871,-236.40428159,0.00026016,2]
[328529363,1717491075879,-155.31344242,0.00026016,2]
[328529364,1717491075888,-283.58794225,0.00026016,2]
[328529365,1717491075897,-157.64338113,0.00026016,2]
[328529366,1717491075906,-993.1702173,0.00026016,2]
[328529367,1717491075915,-275.36212988,0.00026016,2]
[328529368,1717491075924,-840.83858524,0.00026016,2]
[328529369,1717491075933,-228.5692831,0.00026016,2]
[328529370,1717491075942,-2430.28812097,0.00026016,2]
[328529371,1717491075951,-155.21205498,0.00026016,2]
[328529372,1717491075960,-1314.63117139,0.00026016,2]
[328529373,1717491075969,-204.75013111,0.00026016,2]
[328529374,1717491075978,-286.12542041,0.00026016,2]
[328529375,1717491075988,-188.20365757,0.00026016,2]
[328529376,1717491075998,-1283.35159826,0.00026016,2]
[328529377,1717491076007,-182.58937031,0.00026016,2]
[328529378,1717491076016,-1502.54211628,0.00026016,2]
[328529379,1717491076025,-920.92330534,0.00026016,2]
[328529380,1717491076034,-164.31574091,0.00026016,2]
[328529381,1717491076043,-382.77257976,0.00026016,2]
[328529382,1717491076051,-155.37029912,0.00026016,2]
[328529383,1717491076060,-313.49177115,0.00026016,2]
[328529384,1717491076070,-286.02120034,0.00026016,2]
[328529385,1717491076081,-1987.13539394,0.00026016,2]
[328529386,1717491076090,-1250.23254609,0.00026016,2]
[328529387,1717491076099,-2756.61846427,0.00026016,2]
[328529388,1717491076108,-6045.46413516,0.00026016,2]
[328529389,1717491076117,-154.9690062,0.00026016,2]
[328529390,1717491076127,-400.0,0.00026016,2]
[328529391,1717491076136,-1284.07410335,0.00026017,2]
[328529392,1717491076145,-269949.8301397,0.00026018,30]
[328529393,1717491076154,-500.0,0.00026027,6]
[328529394,1717491076163,-500.0,0.00026027,6]
[328529395,1717491076173,-1547.46,0.00026027,6]
[328529396,1717491076182,-333.5,0.00026027,6]
[328529397,1717491076191,-517.42,0.00026027,6]
[328529398,1717491076201,-502.04,0.00026027,6]
[328529399,1717491076210,-771.55,0.00026027,6]
[328529400,1717491076219,-500.0,0.00026027,6]
[328529401,1717491076228,-1211.67,0.00026027,6]
[328529402,1717491076239,-1063.22,0.00026027,6]
[328529403,1717491076248,-677.21,0.00026027,6]
[328529404,1717491076257,-500.0,0.00026027,6]
[328529405,1717491076266,-505.94,0.00026027,6]
[328529406,1717491076275,-625.76,0.00026027,6]
[328529407,1717491076284,-612.14634416,0.00026027,6]
[328529408,1717491076293,-500.0,0.00026027,6]
[328529409,1717491076302,-528.05,0.00026027,6]
[328529410,1717491076311,-880.63,0.00026027,6]
[328529411,1717491076320,-1442.26,0.00026027,6]
[328529412,1717491076329,-1154.39,0.00026027,6]
[328529413,1717491076342,-523.02,0.00026027,6]
[328529414,1717491076351,-1023.21,0.00026027,6]
[328529415,1717491076360,-500.0,0.00026027,6]
[328529416,1717491076370,-500.0,0.00026027,6]
[328529417,1717491076382,-1700.55,0.00026027,6]
[328529418,1717491076392,-500.0,0.00026027,6]
[328529419,1717491076401,-500.0,0.00026027,6]
[328529420,1717491076411,-500.0,0.00026027,6]
[328529421,1717491076420,-529.61,0.00026027,6]
[328529422,1717491076432,-500.0,0.00026027,6]
[328529423,1717491076442,-3200.1,0.00026027,6]
[328529424,1717491076452,-1036.62,0.00026027,6]
[328529425,1717491076462,-558.11,0.00026027,6]
[328529426,1717491076471,-2081.33,0.00026027,6]
[328529427,1717491076480,-2897.19,0.00026027,6]
[328529428,1717491076492,-716.73,0.00026027,6]
[328529429,1717491076501,-551.83,0.00026027,6]
[328529430,1717491076510,-1067.09,0.00026027,6]
[328529431,1717491076519,-500.0,0.00026027,6]
[328529432,1717491076528,-784.48,0.00026027,6]
[328529433,1717491076537,-2398.11,0.00026027,6]
[328529434,1717491076546,-6351.48,0.00026027,6]
[328529435,1717491076556,-500.0,0.00026027,6]
[328529436,1717491076565,-500.0,0.00026027,6]
[328529437,1717491076574,-2864.71,0.00026027,6]
[328529438,1717491076584,-548.76,0.00026027,6]
[328529439,1717491076593,-211.12,0.00026027,6]
[328529440,1717491076602,-500.0,0.00026027,6]
[328529441,1717491076612,-1053.55,0.00026027,6]
[328529442,1717491076621,-508.28,0.00026027,6]
[328529443,1717491076630,-8636.82,0.00026027,6]
[328529444,1717491076640,-8387.6,0.00026027,6]
[328529445,1717491076650,-9610.03,0.00026027,6]
[328529446,1717491076659,-587.19,0.00026027,6]
[328529447,1717491076668,-2962.26,0.00026027,6]
[328529448,1717491076678,-500.0,0.00026027,6]
[328529449,1717491076687,-500.0,0.00026027,6]
[328529450,1717491076697,-500.0,0.00026027,6]
[328529451,1717491076706,-878.67,0.00026027,6]
[328529452,1717491076716,-500.0,0.00026027,6]
[328529453,1717491076725,-618.64,0.00026027,6]
[328529454,1717491076735,-1141.41,0.00026027,6]
[328529455,1717491076746,-613.13,0.00026027,6]
[328529456,1717491076756,-576.98,0.00026027,6]
[328529457,1717491076765,-500.0,0.00026027,6]
[328529458,1717491076774,-1776.49,0.00026027,6]
[328529459,1717491076784,-151.382194,0.00026027,2]
[328529460,1717491076794,-584.131166,0.00026027,2]
[328529461,1717491076803,-321.809964,0.00026027,2]
[328529462,1717491076812,-620.00138587,0.00026186,2]
[328529463,1717491076822,-4369.0,0.0002619,35]
[328529464,1717491076831,-4369.0,0.000262,35]
[328529465,1717491076841,-250.2,0.00026206,7]
[328529466,1717491076850,-4369.0,0.0002621,35]
[328529467,1717491076860,-436.68127201,0.00026301,6]
[328529468,1717491076869,-500.0,0.00026301,6]
[328529469,1717491076878,-1547.46,0.00026301,6]
[328529470,1717491076887,-517.42,0.00026301,6]
[328529471,1717491076896,-502.04,0.00026301,6]
[328529472,1717491076906,-771.55,0.00026301,6]
[328529473,1717491076915,-500.0,0.00026301,6]
[328529474,1717491076924,-1211.67,0.00026301,6]
[328529475,1717491076933,-1063.22,0.00026301,6]
[328529476,1717491076943,-677.21,0.00026301,6]
[328529477,1717491076952,-500.0,0.00026301,6]
[328529478,1717491076961,-505.94,0.00026301,6]
[328529479,1717491076970,-625.76,0.00026301,6]
[328529480,1717491076979,-279.48451055,0.00026301,6]
[328529481,1717491076991,-528.05,0.00026301,6]
[328529482,1717491077001,-880.63,0.00026301,6]
[328529483,1717491077010,-1442.26,0.00026301,6]
[328529484,1717491077020,-1154.39,0.00026301,6]
[328529485,1717491077029,-523.02,0.00026301,6]
[328529486,1717491077039,-268.37591726,0.00026301,6]
[328529487,1717491077193,-289.89676959,0.00026301,6]
[328529488,1717491107905,273.37336231,9.9e-05,2]
[328529489,1717491115938,273.37336231,9.9e-05,2]
[328529490,1717491124081,273.37336231,9.9e-05,2]
[328529491,1717491133738,273.37336231,9.9e-05,2]
[328529492,1717491141975,273.37336231,9.9e-05,2]
[328529493,1717491143713,3379.82053198,9.9e-05,2]
[328529494,1717491146436,154.95351395,9.9e-05,2]
[328529495,1717491149895,273.37336231,9.9e-05,2]
[328529496,1717491159223,273.37336231,9.9e-05,2]
[328529497,1717491159722,3379.82053198,9.9e-05,2]
[328529498,1717491162434,156.53485977,9.9e-05,2]
[328529499,1717491165713,303.01600666,9.999e-05,2]
[328529500,1717491167239,273.37336231,9.9e-05,2]
[328529501,1717491171884,164.49289543,9.999e-05,2]
[328529502,1717491175781,2905.79800499,9.9e-05,2]
[328529503,1717491175935,273.37336231,9.9e-05,2]
[328529504,1717491179564,1341.97127634,9.999e-05,2]
[328529505,1717491184678,273.37336231,9.9e-05,2]
[328529506,1717491192934,273.37336231,9.9e-05,2]
[328529507,1717491201170,273.37336231,9.9e-05,2]
[328529508,1717491210031,273.37336231,9.9e-05,2]
[328529509,1717491218437,273.37336231,9.9e-05,2]
[328529510,1717491227169,273.37336231,9.9e-05,2]
[328529511,1717491235105,273.37336231,9.9e-05,2]
[328529512,1717491243035,273.37336231,9.9e-05,2]
[328529513,1717491251612,273.37336231,9.9e-05,2]
[328529514,1717491259845,273.37336231,9.9e-05,2]
[328529515,1717491267810,273.37336231,9.9e-05,2]
[328529516,1717491276069,273.37336231,9.9e-05,2]
[328529517,1717491284056,273.37336231,9.9e-05,2]
[328529518,1717491292749,273.37336231,9.9e-05,2]
[328529519,1717491301242,273.37336231,9.9e-05,2]
[328529520,1717491309485,273.37336231,9.9e-05,2]
[328529521,1717491317488,273.37336231,9.9e-05,2]
[328529523,1717491326194,273.37336231,9.9e-05,2]
[328529524,1717491334110,273.37336231,9.9e-05,2]
[328529525,1717491342241,273.37336231,9.9e-05,2]
[328529526,1717491350733,273.37336231,9.9e-05,2]
[328529527,1717491359174,273.37336231,9.9e-05,2]
[328529528,1717491363907,551.95683803,9.899e-05,2]
[328529529,1717491366726,529.79177973,9.999e-05,2]
[328529530,1717491367768,273.37336231,9.9e-05,2]
[328529531,1717491376602,221.05134818,9.9e-05,2]
[328529784,1717492238344,-685.80898577,0.00018884,2]
[328529786,1717492238353,-456.49760352,0.00018884,2]
[328529788,1717492238363,-275.36212988,0.00018885,2]
[328529790,1717492238373,-1500.09697047,0.00018886,2]
[328529792,1717492238382,-181.85934055,0.00018886,2]
[328529794,1717492238391,-1341.97127634,0.00018887,2]
[328529796,1717492238401,-9369.44632645,0.00018887,2]
[328529798,1717492238413,-211.60369095,0.00018887,2]
[328529800,1717492238422,-407.15757767,0.000189,2]
[328529802,1717492238431,-250.0,0.00019638,2]
[328529804,1717492238441,-585.4664393,0.00019957,2]
[328529806,1717492238450,-291.77473267,0.00020084,2]
[328529807,1717492238459,-171.527899,0.00020807,2]
[328529809,1717492238469,-500.0,0.00021917,2]
[328529811,1717492238478,-587.44,0.00021917,2]
[328529812,1717492238488,-500.0,0.00021917,2]
[328529813,1717492238497,-500.0,0.00021917,2]
[328529814,1717492238507,-372.10530507,0.00021917,2]
[328529815,1717492238518,-500.0,0.00021917,2]
[328529816,1717492238528,-500.0,0.00021917,2]
[328529817,1717492238537,-500.0,0.00021917,2]
[328529818,1717492238547,-500.0,0.00021917,2]
[328529819,1717492238556,-500.0,0.00021917,2]
[328529820,1717492238565,-500.0,0.00021917,2]
[328529821,1717492238574,-500.0,0.00021917,2]
[328529822,1717492238584,-80.30401477,0.00021917,2]
[328529823,1717492238597,-419.69598523,0.00021917,2]
[328529824,1717492238607,-500.0,0.00021917,2]
[328529825,1717492238616,-500.0,0.00021917,2]
[328529826,1717492238625,-500.0,0.00021917,2]
[328529827,1717492238634,-500.0,0.00021917,2]
[328529828,1717492238644,-500.0,0.00021917,2]
[328529829,1717492238653,-500.0,0.00021917,2]
[328529830,1717492238663,-500.0,0.00021917,2]
[328529831,1717492238672,-474.28961376,0.00021917,2]
[328529832,1717492238681,-500.0,0.00021917,2]
[328529833,1717492238691,-371.907331,0.00021917,2]
[328529836,1717492239194,-128.092669,0.00021917,2]
[328529837,1717492239205,-500.0,0.00021917,2]
[328529838,1717492239215,-355.92558398,0.00021917,2]
[328529839,1717492239264,-144.07441602,0.00021917,2]
[328529841,1717492239275,-500.0,0.00021917,2]
[328529843,1717492239284,-500.0,0.00021917,2]
[328529845,1717492239294,-500.0,0.00021917,2]
[328529847,1717492239303,-500.0,0.00021917,2]
[328529848,1717492239313,-500.0,0.00021917,2]
[328529849,1717492239322,-500.0,0.00021917,2]
[328529850,1717492239331,-500.0,0.00021917,2]
[328529851,1717492239340,-246.61,0.00021917,2]
[328529852,1717492239349,-500.0,0.00021917,2]
[328529853,1717492239359,-566.85,0.00021917,2]
[328529854,1717492239368,-500.0,0.00021917,2]
[328529855,1717492239377,-500.0,0.00021917,2]
[328529856,1717492239386,-500.0,0.00021917,2]
[328529857,1717492239396,-500.0,0.00021917,2]
[328529858,1717492239405,-500.0,0.00021917,2]
[328529859,1717492239415,-500.0,0.00021917,2]
[328529860,1717492239426,-500.0,0.00021917,2]
[328529861,1717492239435,-563.92442005,0.00021917,2]
[328529862,1717492239444,-500.0,0.00021917,2]
[328529863,1717492239454,-500.0,0.00021917,2]
[328529864,1717492239463,-500.0,0.00021917,2]
[328529865,1717492239472,-500.0,0.00021917,2]
[328529866,1717492239482,-500.0,0.00021917,2]
[328529867,1717492239491,-500.0,0.00021917,2]
[328529868,1717492239501,-500.0,0.00021917,2]
[328529869,1717492239511,-500.0,0.00021917,2]
[328529870,1717492239523,-500.0,0.00021917,2]
[328529871,1717492239533,-693.77,0.00021917,2]
[328529872,1717492239543,-500.0,0.00021917,2]
[328529873,1717492239552,-500.0,0.00021917,2]
[328529874,1717492239562,-965.73,0.00021917,2]
[328529875,1717492239571,-500.0,0.00021917,2]
[328529876,1717492239580,-500.0,0.00021917,2]
[328529877,1717492239590,-559.81561346,0.00021917,2]
[328529878,1717492239599,-500.0,0.00021917,2]
[328529879,1717492239608,-500.0,0.00021917,2]
[328529880,1717492239618,-799.37,0.00021917,2]
[328529881,1717492239628,-500.0,0.00021917,2]
[328529882,1717492239637,-500.0,0.00021917,2]
[328529883,1717492239646,-2117.16,0.00021917,2]
[328529884,1717492239656,-500.0,0.00021917,2]
[328529885,1717492239665,-392.68432361,0.00021917,2]
[328529886,1717492239674,-500.0,0.00021917,2]
[328529887,1717492239684,-500.0,0.00021917,2]
[328529888,1717492239694,-1007.41,0.00021917,2]
[328529889,1717492239706,-509.79,0.00021917,2]
[328529890,1717492239716,-500.0,0.00021917,2]
[328529891,1717492239726,-2795.87,0.00021917,2]